[Event "Schachfestival GM 2018"]
[Site "Lueneburg"]
[Date "2018.07.09"]
[Round "5"]
[White "Malakhatko, Vadim"]
[Black "Drozdowski, Kacper"]
[Result "1/2-1/2"]
[ECO "E91"]
[WhiteElo "2499"]
[BlackElo "2455"]
[Annotator "ChessBase"]
[PlyCount "189"]
[EventDate "2018.07.05"]
[EventType "tourn"]
[EventCountry "GER"]
[SourceTitle "playchess.com"]
[Source "ChessBase"]
[SourceQuality "1"]
[TimeControl "40/5400+30:1800+30"]

1. c4 {[%emt 0:00:00]} Nf6 {[%emt 0:00:00]} 2. Nf3 {[%emt 0:00:42]} g6 {[%emt 0:00:00]} 3. Nc3 {[%emt 0:00:06]} Bg7 {[%emt 0:00:58]} 4. e4 {[%emt 0:00:06]} O-O {[%emt 0:00:55]} 5. d4 {[%emt 0:00:07]} d6 {[%emt 0:00:52]} 6. Be2 {[%emt 0:00:08]} Bg4 {[%emt 0:01:13]} 7. Be3 {[%emt 0:00:44]} Nfd7 {[%emt 0:04:00]} 8. Rc1 {[%emt 0:06:17]} e5 {[%emt 0:11:43]} 9. d5 {[%emt 0:04:33]} a5 {[%emt 0:01:14]} 10. O-O {[%emt 0:01:24]} Na6 {[%emt 0:00:29]} 11. b3 {[%emt 0:01:21]} Ndc5 {[%emt 0:03:35]} 12. Nd2 {[%emt 0:00:55]} Bd7 {[%emt 0:00:26]} 13. a3 {[%emt 0:00:40]} f5 {[%emt 0:05:36]} 14. f3 {[%emt 0:01:03]} Qh4 {[%emt 0:03:33]} 15. Bf2 {[%emt 0:01:41]} Qe7 {[%emt 0:03:29]} 16. Rb1 {[%emt 0:04:34]} Bh6 {[%emt 0:05:45]} 17. b4 {[%emt 0:05:02]} axb4 {[%emt 0:06:24]} 18. axb4 {[%emt 0:03:47]} Na4 {[%emt 0:02:18]} 19. Qc2 {[%emt 0:02:26]} Nxc3 {[%emt 0:06:40]} 20. Qxc3 {[%emt 0:05:22]} Nb8 {[%emt 0:00:30]} 21. c5 {[%emt 0:01:54]} Ra2 {[%emt 0:02:01]} 22. Rb2 {[%emt 0:00:07]} Rxb2 {[%emt 0:00:49]} 23. Qxb2 {[%emt 0:05:03]} fxe4 {[%emt 0:04:02]} 24. fxe4 {[%emt 0:19:03]} Bc8 {[%emt 0:02:27]} 25. Nc4 {[%emt 0:07:33]} Nd7 {[%emt 0:00:43]} 26. Bg4 {[%emt 0:01:23]} Nf6 {[%emt 0:06:42]} 27. Bxc8 {[%emt 0:00:12]} Rxc8 {[%emt 0:00:02]} 28. Qe2 {[%emt 0:00:10]} Nh5 {[%emt 0:02:27]} 29. Qg4 {[%emt 0:03:26]} Rf8 {[%emt 0:01:19]} 30. cxd6 {[%emt 0:12:26]} cxd6 {[%emt 0:00:10]} 31. Qe6+ {[%emt 0:01:04]} Qxe6 {[%emt 0:02:22]} 32. dxe6 {[%emt 0:00:11]} Nf4 {[%emt 0:01:26]} 33. e7 {[%emt 0:04:03]} Re8 {[%emt 0:00:28]} 34. Bh4 {[%emt 0:00:30]} g5 {[%emt 0:01:32]} 35. Nxd6 {[%emt 0:00:05]} Rxe7 {[%emt 0:00:05]} 36. Nf5 {[%emt 0:00:05]} Re6 {[%emt 0:00:15]} 37. Nxh6+ {[%emt 0:00:07]} Rxh6 {[%emt 0:00:04]} 38. Bxg5 {[%emt 0:00:05]} Ne2+ {[%emt 0:03:10]} 39. Kf2 {[%emt 0:01:07]} Rxh2 {[%emt 0:00:06]} 40. Bf6 {[%emt 0:09:40]} Nf4 {[%emt 0:04:31]} 41. Bxe5 {[%emt 0:30:06]} Nd3+ {[%emt 0:30:16]} 42. Kg3 {[%emt 0:00:03]} Rh6 {[%emt 0:00:46]} 43. Bc3 {[%emt 0:00:05]} Rc6 {[%emt 0:09:36]} 44. Bd2 {[%emt 0:00:12]} Rg6+ {[%emt 0:00:09]} 45. Kh3 {[%emt 0:00:00]} Re6 {[%emt 0:00:00]} 46. Rf3 {[%emt 0:00:00]} Ne5 {[%emt 0:00:00]} 47. Rc3 {[%emt 0:00:00]} Kf7 {[%emt 0:00:00]} 48. Rc7+ {[%emt 0:00:00]} Re7 {[%emt 0:00:00]} 49. Rxe7+ {[%emt 0:00:00]} Kxe7 {[%emt 0:00:00]} 50. Bc3 {[%emt 0:00:00]} Nf7 {[%emt 0:00:00]} 51. Kg4 {[%emt 0:00:00]} Ke6 {[%emt 0:00:00]} 52. Kf4 {[%emt 0:00:00]} Nd6 {[%emt 0:00:00]} 53. Be1 {[%emt 0:00:00]} Nf7 {[%emt 0:00:00]} 54. Ke3 {[%emt 0:00:00]} Ne5 {[%emt 0:00:00]} 55. Kd4 {[%emt 0:00:00]} Nd7 {[%emt 0:00:00]} 56. Bg3 {[%emt 0:00:00]} Nf6 {[%emt 0:00:00]} 57. Bc7 {[%emt 0:00:00]} Nd7 {[%emt 0:00:00]} 58. Ke3 {[%emt 0:00:00]} Nf6 {[%emt 0:00:00]} 59. Kf4 {[%emt 0:00:00]} Nh5+ {[%emt 0:00:00]} 60. Kg5 {[%emt 0:00:00]} Nf6 {[%emt 0:00:00]} 61. Kf4 {[%emt 0:06:16]} Nh5+ {[%emt 0:00:00]} 62. Ke3 {[%emt 0:00:12]} Nf6 {[%emt 0:00:00]} 63. Kf3 {[%emt 0:00:56]} Ne8 {[%emt 0:04:16]} 64. Bd8 {[%emt 0:01:44]} Nd6 {[%emt 0:00:05]} 65. Ke3 {[%emt 0:00:10]} Nc4+ {[%emt 0:00:17]} 66. Kd4 {[%emt 0:00:31]} Ne5 {[%emt 0:00:07]} 67. Bc7 {[%emt 0:00:10]} Nd7 {[%emt 0:00:07]} 68. g3 {[%emt 0:00:10]} Nf6 {[%emt 0:00:32]} 69. Ke3 {[%emt 0:00:32]} Ne8 {[%emt 0:03:26]} 70. Bb8 {[%emt 0:00:13]} Nf6 {[%emt 0:00:08]} 71. Kf3 {[%emt 0:00:17]} Nd7 {[%emt 0:00:27]} 72. Bc7 {[%emt 0:00:08]} Nf6 {[%emt 0:00:18]} 73. g4 {[%emt 0:00:26]} Nd7 {[%emt 0:02:48]} 74. Kf4 {[%emt 0:01:16]} Nf6 {[%emt 0:00:06]} 75. Bb6 {[%emt 0:00:39]} h5 {[%emt 0:02:23]} 76. g5 {[%emt 0:01:22]} Nd7 {[%emt 0:00:01]} 77. Bd4 {[%emt 0:01:25]} Nf8 {[%emt 0:00:01]} 78. Ba7 {[%emt 0:01:05]} Ng6+ {[%emt 0:00:04]} 79. Ke3 {[%emt 0:00:06]} Ne5 {[%emt 0:00:38]} 80. Bd4 {[%emt 0:00:20]} Ng6 {[%emt 0:00:41]} 81. Bc3 {[%emt 0:01:12]} Kd6 {[%emt 0:00:40]} 82. Be1 {[%emt 0:00:19]} Ke5 {[%emt 0:01:23]} 83. Bg3+ {[%emt 0:00:07]} Ke6 {[%emt 0:00:01]} 84. Kd4 {[%emt 0:00:20]} h4 {[%emt 0:01:49]} 85. Bh2 {[%emt 0:00:08]} h3 {[%emt 0:01:17]} 86. Ke3 {[%emt 0:00:08]} b5 {[%emt 0:01:20]} 87. Bg3 {[%emt 0:02:05]} Ne7 {[%emt 0:00:36]} 88. Kd4 {[%emt 0:00:08]} Nc6+ {[%emt 0:00:48]} 89. Kc5 {[%emt 0:00:07]} Ne5 {[%emt 0:00:12]} 90. Kxb5 {[%emt 0:00:07]} Nf3 {[%emt 0:02:07]} 91. Kc6 {[%emt 0:01:50]} Nxg5 {[%emt 0:00:09]} 92. b5 {[%emt 0:00:08]} Nxe4 {[%emt 0:00:07]} 93. Bf4 {[%emt 0:00:50]} Nd2 {[%emt 0:00:42]} 94. b6 {[%emt 0:00:30]} Nc4 {[%emt 0:00:05]} 95. b7 {[%emt 0:00:04] Ke5} 1/2-1/2

[Event "Schachfestival GM 2018"]
[Site "Lueneburg"]
[Date "2018.07.09"]
[Round "5"]
[White "Karpatchev, Aleksandr"]
[Black "Winterberg, Lukas"]
[Result "1/2-1/2"]
[ECO "C47"]
[WhiteElo "2469"]
[BlackElo "2372"]
[Annotator "ChessBase"]
[PlyCount "228"]
[EventDate "2018.07.05"]
[EventType "tourn"]
[EventCountry "GER"]
[SourceTitle "playchess.com"]
[Source "ChessBase"]
[SourceQuality "1"]
[TimeControl "40/5400+30:1800+30"]

1. e4 {[%emt 0:03:02]} e5 {[%emt 0:00:00]} 2. Nf3 {[%emt 0:00:45]} Nf6 {[%emt 0:00:08]} 3. Nc3 {[%emt 0:01:48]} Nc6 {[%emt 0:00:16]} 4. d4 {[%emt 0:00:10]} exd4 {[%emt 0:00:10]} 5. Nxd4 {[%emt 0:00:01]} Bb4 {[%emt 0:00:55]} 6. Nxc6 {[%emt 0:00:05]} bxc6 {[%emt 0:00:14]} 7. Bd3 {[%emt 0:00:07]} O-O {[%emt 0:00:23]} 8. O-O {[%emt 0:00:04]} d5 {[%emt 0:00:11]} 9. exd5 {[%emt 0:00:09]} Bg4 {[%emt 0:00:16]} 10. f3 {[%emt 0:10:47]} Bh5 {[%emt 0:00:14]} 11. Bg5 {[%emt 0:08:47]} Bxc3 {[%emt 0:03:23]} 12. bxc3 {[%emt 0:00:07]} cxd5 {[%emt 0:06:39]} 13. c4 {[%emt 0:12:55]} dxc4 {[%emt 0:20:18]} 14. Bxc4 {[%emt 0:00:09]} Qe7 {[%emt 0:00:08]} 15. Qd4 {[%emt 0:05:15]} Rfd8 {[%emt 0:01:44]} 16. Qf2 {[%emt 0:04:21]} Qe5 {[%emt 0:02:27]} 17. Be3 {[%emt 0:15:42]} Qc3 {[%emt 0:01:00]} 18. Bb3 {[%emt 0:00:50]} a5 {[%emt 0:06:05]} 19. a4 {[%emt 0:00:24]} Rd7 {[%emt 0:02:17]} 20. Rad1 {[%emt 0:02:33]} Rad8 {[%emt 0:00:16]} 21. Rxd7 {[%emt 0:00:08]} Rxd7 {[%emt 0:00:09]} 22. Qe1 {[%emt 0:01:05]} Qxe1 {[%emt 0:21:22]} 23. Rxe1 {[%emt 0:00:04]} h6 {[%emt 0:00:52]} 24. Re2 {[%emt 0:09:26]} Bg6 {[%emt 0:10:41]} 25. Bd2 {[%emt 0:02:57]} c5 {[%emt 0:00:12]} 26. Bxa5 {[%emt 0:01:04]} c4 {[%emt 0:00:43]} 27. Bxc4 {[%emt 0:00:28]} Ra7 {[%emt 0:00:02]} 28. Be1 {[%emt 0:06:27]} Rxa4 {[%emt 0:00:15]} 29. Bb3 {[%emt 0:00:43]} Ra8 {[%emt 0:02:00]} 30. Kf2 {[%emt 0:05:17]} Nd7 {[%emt 0:00:16]} 31. Bb4 {[%emt 0:00:48]} Rb8 {[%emt 0:01:38]} 32. Bd6 {[%emt 0:01:55]} Rc8 {[%emt 0:01:36]} 33. Re7 {[%emt 0:03:39]} Nc5 {[%emt 0:07:06]} 34. Bxc5 {[%emt 0:00:31]} Rxc5 {[%emt 0:00:10]} 35. Re8+ {[%emt 0:00:32]} Kh7 {[%emt 0:00:03]} 36. Re2 {[%emt 0:00:06]} Bf5 {[%emt 0:01:45]} 37. g4 {[%emt 0:03:30]} Bg6 {[%emt 0:00:16]} 38. Ke1 {[%emt 0:01:00]} f5 {[%emt 0:00:57]} 39. Kd2 {[%emt 0:00:26]} fxg4 {[%emt 0:00:37]} 40. fxg4 {[%emt 0:00:02]} h5 {[%emt 0:00:56]} 41. gxh5 {[%emt 0:31:27]} Bxh5 {[%emt 0:30:35]} 42. Rf2 {[%emt 0:00:00]} Kh6 {[%emt 0:00:00]} 43. c4 {[%emt 0:00:00]} Kg5 {[%emt 0:00:00]} 44. Kc3 {[%emt 0:00:00]} Rf5 {[%emt 0:00:00]} 45. Rg2+ {[%emt 0:00:00]} Kf6 {[%emt 0:00:00]} 46. Kb4 {[%emt 0:00:00]} Bf7 {[%emt 0:00:00]} 47. Ba2 {[%emt 0:00:00]} Rf1 {[%emt 0:00:00]} 48. c5 {[%emt 0:00:00]} Be8 {[%emt 0:00:00]} 49. Ka5 {[%emt 0:00:00]} Bc6 {[%emt 0:00:00]} 50. Rd2 {[%emt 0:00:05]} Ke5 {[%emt 0:00:00]} 51. Kb6 {[%emt 0:00:28]} Be4 {[%emt 0:00:21]} 52. Kc7 {[%emt 0:01:33]} Rc1 {[%emt 0:00:25]} 53. Kb6 {[%emt 0:00:14]} Rf1 {[%emt 0:00:12]} 54. Bc4 {[%emt 0:03:05]} Rf6+ {[%emt 0:00:33]} 55. Ka5 {[%emt 0:00:19]} Rg6 {[%emt 0:01:14]} 56. Bb5 {[%emt 0:01:20]} Rg2 {[%emt 0:04:09]} 57. Rd7 {[%emt 0:00:38]} Rxh2 {[%emt 0:05:15]} 58. Rxg7 {[%emt 0:00:06]} Rh6 {[%emt 0:00:10]} 59. Rd7 {[%emt 0:00:37]} Rf6 {[%emt 0:00:30]} 60. Rd8 {[%emt 0:00:20]} Bd5 {[%emt 0:01:01]} 61. Rh8 {[%emt 0:01:06]} Kd4 {[%emt 0:00:45]} 62. Kb4 {[%emt 0:00:09]} Ke5 {[%emt 0:00:30]} 63. Rh5+ {[%emt 0:00:26]} Rf5 {[%emt 0:00:08]} 64. Rh2 {[%emt 0:00:18]} Rf6 {[%emt 0:02:33]} 65. Re2+ {[%emt 0:00:36]} Kd4 {[%emt 0:00:02]} 66. Rc2 {[%emt 0:00:35]} Rf4 {[%emt 0:03:32]} 67. Ka5 {[%emt 0:00:39]} Ke5 {[%emt 0:00:52]} 68. Kb6 {[%emt 0:00:19]} Rf6+ {[%emt 0:00:09]} 69. c6 {[%emt 0:00:06]} Bxc6 {[%emt 0:00:13]} 70. Bxc6 {[%emt 0:00:02]} Kd4 {[%emt 0:00:09]} 71. Rd2+ {[%emt 0:00:55]} Kc4 {[%emt 0:00:29]} 72. Rh2 {[%emt 0:00:23]} Kd4 {[%emt 0:00:20]} 73. Rh4+ {[%emt 0:00:09]} Ke5 {[%emt 0:00:17]} 74. Kc5 {[%emt 0:00:06]} Rf4 {[%emt 0:00:06]} 75. Rh8 {[%emt 0:00:23]} Rf6 {[%emt 0:00:47]} 76. Bd5 {[%emt 0:00:15]} Ra6 {[%emt 0:00:39]} 77. Re8+ {[%emt 0:00:37]} Kf4 {[%emt 0:00:03]} 78. Kd4 {[%emt 0:00:17]} Ra4+ {[%emt 0:00:09]} 79. Bc4 {[%emt 0:00:06]} Ra5 {[%emt 0:00:09]} 80. Re1 {[%emt 0:00:25]} Ra4 {[%emt 0:00:44]} 81. Rf1+ {[%emt 0:00:05]} Kg5 {[%emt 0:00:03]} 82. Rf8 {[%emt 0:02:04]} Kg4 {[%emt 0:00:14]} 83. Kd3 {[%emt 0:00:40]} Kg5 {[%emt 0:00:31]} 84. Bd5 {[%emt 0:00:26]} Rb4 {[%emt 0:00:19]} 85. Ke3 {[%emt 0:00:17]} Ra4 {[%emt 0:00:35]} 86. Be4 {[%emt 0:00:22]} Rb4 {[%emt 0:01:51]} 87. Rf5+ {[%emt 0:00:54]} Kg4 {[%emt 0:00:12]} 88. Rf6 {[%emt 0:00:36]} Rb5 {[%emt 0:01:29]} 89. Rg6+ {[%emt 0:00:41]} Rg5 {[%emt 0:00:03]} 90. Ra6 {[%emt 0:01:42]} Rb5 {[%emt 0:00:19]} 91. Rd6 {[%emt 0:00:20]} Ra5 {[%emt 0:00:11]} 92. Re6 {[%emt 0:00:40]} Rb5 {[%emt 0:00:36]} 93. Bd3 {[%emt 0:00:18]} Ra5 {[%emt 0:00:13]} 94. Rg6+ {[%emt 0:00:44]} Rg5 {[%emt 0:00:02]} 95. Ra6 {[%emt 0:00:16]} Re5+ {[%emt 0:00:24]} 96. Kd4 {[%emt 0:00:26]} Re7 {[%emt 0:00:38]} 97. Be4 {[%emt 0:00:09]} Kf4 {[%emt 0:00:43]} 98. Rf6+ {[%emt 0:00:22]} Kg5 {[%emt 0:00:02]} 99. Rf5+ {[%emt 0:00:45]} Kg6 {[%emt 0:00:33]} 100. Ke3 {[%emt 0:00:45]} Kg7 {[%emt 0:00:31]} 101. Ra5 {[%emt 0:00:16]} Kf6 {[%emt 0:00:17]} 102. Rf5+ {[%emt 0:00:46]} Ke6 {[%emt 0:00:12]} 103. Ra5 {[%emt 0:00:09]} Kf6 {[%emt 0:00:06]} 104. Kf4 {[%emt 0:00:16]} Re6 {[%emt 0:00:59]} 105. Ra7 {[%emt 0:00:32]} Re7 {[%emt 0:00:35]} 106. Ra1 {[%emt 0:00:21]} Ke6 {[%emt 0:01:00]} 107. Ra6+ {[%emt 0:00:20]} Kd7 {[%emt 0:00:06]} 108. Ke3 {[%emt 0:00:17]} Re5 {[%emt 0:00:44]} 109. Kd4 {[%emt 0:00:09]} Rg5 {[%emt 0:00:20]} 110. Bd5 {[%emt 0:00:54]} Ke7 {[%emt 0:00:33]} 111. Re6+ {[%emt 0:00:35]} Kf8 {[%emt 0:01:22]} 112. Rf6+ {[%emt 0:00:32]} Ke7 {[%emt 0:00:12]} 113. Rf1 {[%emt 0:00:39]} Kd6 {[%emt 0:00:30]} 114. Be4 {[%emt 0:00:12]} Ra5 {[%emt 0:00:16]} 1/2-1/2

[Event "Schachfestival GM 2018"]
[Site "Lueneburg"]
[Date "2018.07.09"]
[Round "5"]
[White "Reuker, Jari"]
[Black "Vorobiov, Evgeny E"]
[Result "1/2-1/2"]
[ECO "D27"]
[WhiteElo "2377"]
[BlackElo "2564"]
[Annotator "ChessBase"]
[PlyCount "54"]
[EventDate "2018.07.05"]
[EventType "tourn"]
[EventCountry "GER"]
[SourceTitle "playchess.com"]
[Source "ChessBase"]
[SourceQuality "1"]
[TimeControl "40/5400+30:1800+30"]

1. Nf3 {[%emt 0:03:11]} d5 {[%emt 0:03:16]} 2. c4 {[%emt 0:00:25]} dxc4 {[%emt 0:02:51]} 3. e3 {[%emt 0:00:15]} Nf6 {[%emt 0:00:48]} 4. Bxc4 {[%emt 0:00:07]} e6 {[%emt 0:00:08]} 5. O-O {[%emt 0:00:15]} c5 {[%emt 0:00:32]} 6. d4 {[%emt 0:01:08]} a6 {[%emt 0:00:11]} 7. dxc5 {[%emt 0:00:15]} Qxd1 {[%emt 0:00:26]} 8. Rxd1 {[%emt 0:00:07]} Bxc5 {[%emt 0:00:19]} 9. Be2 {[%emt 0:00:38]} b6 {[%emt 0:03:10]} 10. b3 {[%emt 0:14:00]} Nbd7 {[%emt 0:02:24]} 11. Bb2 {[%emt 0:03:26]} Bb7 {[%emt 0:00:08]} 12. Nbd2 {[%emt 0:08:41]} O-O {[%emt 0:12:22]} 13. Nc4 {[%emt 0:02:27]} Rfd8 {[%emt 0:00:55]} 14. Ne1 {[%emt 0:09:15]} b5 {[%emt 0:16:50]} 15. Ne5 {[%emt 0:16:09]} Nxe5 {[%emt 0:02:58]} 16. Bxe5 {[%emt 0:00:11]} Kf8 {[%emt 0:04:06]} 17. Bxf6 {[%emt 0:06:26]} gxf6 {[%emt 0:00:20]} 18. Bf3 {[%emt 0:00:25]} Bxf3 {[%emt 0:00:36]} 19. Nxf3 {[%emt 0:00:38]} Ba3 {[%emt 0:01:15]} 20. Kf1 {[%emt 0:02:29]} Rxd1+ {[%emt 0:00:40]} 21. Rxd1 {[%emt 0:00:01]} Rc8 {[%emt 0:00:09]} 22. Ke2 {[%emt 0:00:43]} Ke7 {[%emt 0:03:33]} 23. Ne1 {[%emt 0:02:17]} Bb4 {[%emt 0:01:05]} 24. Rd4 {[%emt 0:01:36]} Bc3 {[%emt 0:07:38]} 25. Rd1 {[%emt 0:02:03]} Bb4 {[%emt 0:00:28]} 26. Rd4 {[%emt 0:00:06]} Bc3 {[%emt 0:00:36]} 27. Rd1 {[%emt 0:00:05]} Bb4 {[%emt 0:00:09]} 1/2-1/2

[Event "Schachfestival GM 2018"]
[Site "Lueneburg"]
[Date "2018.07.09"]
[Round "5"]
[White "Wachinger, Nikolas"]
[Black "Barath, Madhan"]
[Result "1-0"]
[ECO "B90"]
[WhiteElo "2340"]
[BlackElo "2321"]
[Annotator "NA"]
[PlyCount "77"]
[EventDate "2018.07.05"]
[EventType "tourn"]
[EventCountry "GER"]
[SourceTitle "playchess.com"]
[Source "ChessBase"]
[SourceQuality "1"]
[TimeControl "40/5400+30:1800+30"]

1. e4 {[%emt 0:00:00]} c5 {[%emt 0:00:00]} 2. Nf3 {[%emt 0:00:00]} d6 {[%emt 0:00:00]} 3. d4 {[%emt 0:00:00]} cxd4 {[%emt 0:00:00]} 4. Nxd4 {[%emt 0:00:00]} Nf6 {[%emt 0:00:00]} 5. Nc3 {[%emt 0:00:00]} a6 {[%emt 0:00:00]} 6. Be3 {[%emt 0:00:09]} e5 {[%emt 0:00:08]} 7. Nb3 {[%emt 0:00:08]} Be7 {[%emt 0:00:13]} 8. h3 {[%emt 0:00:12] B90: Sicilian Najdorf: Unusual White 6th moves, 6 Be3 Ng4 and 6 Be3 e5} (8. f3 h5 9. Qd2 Be6 10. f4 Qc7 11. f5 Bc4 12. Bg5 Nbd7 13. O-O-O Rc8 14. Bxc4 Qxc4 15. Kb1 h4 16. Qe1 Rh5 17. Bxh4 Nxe4 18. Nxe4 Rxh4 {1-0 (50) Wang,H (2710)-Zhao,J (2611) Tianjin 2018}) 8... Be6 {[%emt 0:00:57]} 9. f4 {[%emt 0:00:11]} exf4 {[%emt 0:00:06]} 10. Bxf4 {[%emt 0:00:08]} Nc6 {[%emt 0:00:40]} 11. Qe2 {[%emt 0:00:10]} Nd7 {[%emt 0:06:39]} 12. O-O-O {[%emt 0:00:19]} Nde5 {[%emt 0:01:17]} 13. Nd5 {[%emt 0:00:15]} O-O {[%emt 0:01:27]} 14. Kb1 {[%emt 0:00:09]} b5 {[%emt 0:07:54]} 15. Qd2 {[%emt 0:04:20]} Re8 {[%emt 0:23:58]} 16. Be2 {[%emt 0:00:22]} Bf8 {[%emt 0:00:32]} 17. g4 $146 {[%emt 0:16:22]} ({Predecessor:} 17. Rhe1 Rc8 18. Bg5 f6 {½-½ (32) Zarnescu,M (2306)-Matei,C (2542) ICCF email 2008}) 17... Rb8 {[%emt 0:13:53]} 18. g5 {[%emt 0:11:50]} a5 {[%emt 0:02:30]} 19. h4 {[%emt 0:02:38]} a4 {[%emt 0:00:17]} 20. Nd4 $15 {[%emt 0:00:42]} Bxd5 {[%emt 0:00:38]} 21. exd5 {[%emt 0:00:38]} Nxd4 {[%emt 0:00:08]} 22. Qxd4 {[%emt 0:00:04]} g6 {[%emt 0:00:43]} 23. Bc1 {[%emt 0:06:50]} Qa5 {[%emt 0:11:01]} 24. h5 {[%emt 0:09:04]} Bg7 {[%emt 0:00:13]} 25. Rh3 {[%emt 0:04:04]} Nc4 {[%emt 0:14:28]} 26. Qf2 {[%emt 0:01:11]} Qb4 {[%emt 0:02:36]} 27. hxg6 {[%emt 0:04:07]} hxg6 {[%emt 0:01:24]} 28. a3 {[%emt 0:25:58]} Qa5 {[%emt 0:04:08]} 29. Rh7 {[%emt 0:04:09]} Qd8 {[%emt 0:02:19]} 30. Rdh1 {[%emt 0:01:50]} Qe7 {[%emt 0:01:06]} 31. Bxc4 {[%emt 0:03:02]} bxc4 {[%emt 0:00:11]} 32. Rxg7+ {[%emt 0:01:22]} Kxg7 {[%emt 0:00:05]} 33. Be3 {[%emt 0:00:11]} Rg8 {[%emt 0:02:18]} 34. Bd4+ {[%emt 0:01:20]} Kf8 {[%emt 0:00:05]} 35. Qh4 {[%emt 0:02:20]} Qe2 {[%emt 0:01:58]} 36. Re1 {[%emt 0:00:02]} Qh5 {[%emt 0:00:08]} 37. Qf4 {[%emt 0:00:03]} Rd8 {[%emt 0:00:46]} 38. Bf6 {[%emt 0:00:04]} Rd7 {[%emt 0:01:53]} 39. Qe4 {[%emt 0:00:03]} 1-0

[Event "Schachfestival GM 2018"]
[Site "Lueneburg"]
[Date "2018.07.09"]
[Round "5"]
[White "Ewert, Hannes"]
[Black "Lubbe, Nikolas"]
[Result "0-1"]
[ECO "E18"]
[WhiteElo "2318"]
[BlackElo "2463"]
[Annotator "ChessBase"]
[PlyCount "72"]
[EventDate "2018.07.05"]
[EventType "tourn"]
[EventCountry "GER"]
[SourceTitle "playchess.com"]
[Source "ChessBase"]
[SourceQuality "1"]
[TimeControl "40/5400+30:1800+30"]

1. Nf3 {[%emt 0:00:00]} Nf6 {[%emt 0:00:01]} 2. c4 {[%emt 0:00:00]} e6 {[%emt 0:00:26]} 3. g3 {[%emt 0:00:00]} b6 {[%emt 0:01:23]} 4. Bg2 {[%emt 0:00:11]} Bb7 {[%emt 0:00:08]} 5. O-O {[%emt 0:00:22]} Be7 {[%emt 0:05:58]} 6. d4 {[%emt 0:01:21]} d5 {[%emt 0:00:16]} 7. Nc3 {[%emt 0:04:16]} O-O {[%emt 0:00:59]} 8. Ne5 {[%emt 0:09:23]} Qc8 {[%emt 0:06:51]} 9. cxd5 {[%emt 0:02:35]} Nxd5 {[%emt 0:05:19]} 10. Nxd5 {[%emt 0:07:55]} exd5 {[%emt 0:00:48]} 11. Be3 {[%emt 0:01:35]} Bd6 {[%emt 0:07:21]} 12. Nd3 {[%emt 0:00:51]} Nd7 {[%emt 0:03:57]} 13. Rc1 {[%emt 0:02:19]} Nf6 {[%emt 0:03:36]} 14. Bf4 {[%emt 0:10:08]} Bxf4 {[%emt 0:07:05]} 15. Nxf4 {[%emt 0:00:08]} Re8 {[%emt 0:00:57]} 16. Qb3 {[%emt 0:04:28]} Qd8 {[%emt 0:03:08]} 17. Rc2 {[%emt 0:04:58]} Re7 {[%emt 0:02:26]} 18. Rfc1 {[%emt 0:02:04]} a5 {[%emt 0:03:42]} 19. e3 {[%emt 0:06:28]} a4 {[%emt 0:05:46]} 20. Qb4 {[%emt 0:01:56]} h6 {[%emt 0:07:21]} 21. Nd3 {[%emt 0:12:50]} Ra7 {[%emt 0:07:08]} 22. Rc3 {[%emt 0:03:24]} Bc8 {[%emt 0:17:17]} 23. Ra3 {[%emt 0:03:39]} Bd7 {[%emt 0:00:52]} 24. b3 {[%emt 0:02:36]} Qe8 {[%emt 0:02:16]} 25. Ne5 {[%emt 0:04:14]} Bb5 {[%emt 0:05:14]} 26. Bf1 {[%emt 0:01:51]} Bxf1 {[%emt 0:01:20]} 27. Kxf1 {[%emt 0:00:12]} Re6 {[%emt 0:00:33]} 28. Rxa4 {[%emt 0:06:30]} c5 {[%emt 0:00:01]} 29. Qa3 {[%emt 0:01:43]} Qb5+ {[%emt 0:00:27]} 30. Kg1 {[%emt 0:04:17]} Rxa4 {[%emt 0:00:13]} 31. Qxa4 {[%emt 0:00:51]} Qe2 {[%emt 0:00:04]} 32. b4 {[%emt 0:00:23]} c4 {[%emt 0:02:04]} 33. Qc2 {[%emt 0:00:22]} Qh5 {[%emt 0:00:01]} 34. a4 Ne4 {[%emt 0:00:37]} 35. Qd1 {[%emt 0:02:30]} Qf5 {[%emt 0:00:04]} 36. Qf3 {[%emt 0:00:35]} Rxe5 {[%emt 0:00:11]} 0-1